Cogmind - Beta 11.1 @@@ ROGUE MODE // 2022.08.19 @ 15:39:54 Player: Love Result: Destroyed by EMP Trap Performance ------------- Evolutions (1) 500 Regions Visited (3) 600 Robots Destroyed (23) 115 Value Destroyed (506) 506 Prototype IDs (0) 0 Alien Tech Used (0) 0 Bonus (0) 0 TOTAL SCORE: 1721 Bonus ------- None Cogmind --------- Core Integrity 0/400 Matter 272/300 Energy 115/125 System Corruption 6% Temperature Cool (5) Movement Walking (126) Location -9/Materials Parts ------- > --- POWER (1) -------- Light Ion Engine > --- PROPULSION (3) --- Aluminum Leg Titanium Leg Titanium Leg > --- UTILITY (3) ------ Power Shielding > --- WEAPON (2) ------- Spread Laser Mace > --- INVENTORY (5) ---- Titanium Leg Titanium Leg Improved Heat Sink Spread Laser Spread Laser Peak State ------------ > --- POWER ------------ Ion Engine > --- PROPULSION ------- Titanium Leg Titanium Leg Titanium Leg > --- UTILITY ---------- Sensor Array Seismic Detector Power Shielding > --- WEAPON ----------- Medium Laser Heavy Assault Rifle > --- INVENTORY -------- Ion Engine Titanium Leg Titanium Leg Titanium Leg [Rating: 17] Favorites ----------- Power Light Ion Engine Engine Light Ion Engine Propulsion Aluminum Leg Leg Aluminum Leg Utility Sensor Array Device Sensor Array Protection Power Shielding Weapon Medium Laser Energy Gun Medium Laser Ballistic Gun Assault Rifle Special Weapon Mining Laser Impact Weapon Mace Build | -11 -10 -10 -9 ------- Run | Scr Mat Min Mat Slots Evolved 2 | . . . 2 Power . | . . . . Propulsion 1 | . . . 1 Utility 1 | . . . 1 Weapon . | . . . . Parts Attached 31 | 8 3 1 19 Power 4 | 1 . 1 2 Engine 4 | 1 . 1 2 Core . | . . . . Reactor . | . . . . Propulsion 10 | 2 . . 8 Treads . | . . . . Leg 10 | 2 . . 8 Wheel . | . . . . Hover . | . . . . Flight . | . . . . Utility 7 | 3 2 . 2 Device 5 | 3 1 . 1 Storage . | . . . . Processor . | . . . . Hackware . | . . . . Protection 2 | . 1 . 1 Artifact . | . . . . Weapon 10 | 2 1 . 7 Energy Gun 6 | 1 1 . 4 Energy Cannon . | . . . . Ballistic Gun 2 | 1 . . 1 Ballistic Cannon . | . . . . Launcher . | . . . . Special Weapon 1 | . . . 1 Impact Weapon 1 | . . . 1 Slashing Weapon . | . . . . Piercing Weapon . | . . . . Special Melee Weapon . | . . . . Unidentified Prototypes . | . . . . Parts Lost 12 | . . . 12 Power 2 | . . . 2 Propulsion 5 | . . . 5 Utility 2 | . . . 2 Weapon 3 | . . . 3 Highest Loss Streak 7 | . . . 7 To Critical Strikes . | . . . . Average Slot Usage (%) 92 | . 100 100 85 Engine 11 | . 14 14 8 Leg 29 | . 28 28 31 Device 16 | . 22 14 14 Protection 10 | . 5 14 11 Energy Gun 19 | . 24 28 12 Ballistic Gun 2 | . 3 . 2 Impact Weapon 1 | . . . 3 Naked Turns . | . . . . Heaviest Build 14 | 9 11 13 14 Greatest Support 51 | 20 20 20 51 Greatest Overweight (x) . | . . . . Average Overweight (x) . | . . . . Largest Inventory Capacity 5 | 5 5 5 5 Average Capacity 5 | 5 5 5 5 Most Carried 5 | 5 5 5 5 Average Carried 4 | 3 4 4 4 Final Capacity 5 | 5 5 5 5 Final Carried 5 | 4 5 5 5 Class Distribution -------------------- 100% | Mutant Dominant Class ---------------- Mutant | -10/Materials Mutant | -10/Mines Mutant | -9/Materials Resources | -11 -10 -10 -9 ----------- Run | Scr Mat Min Mat Matter Collected 546 | 301 30 10 205 Remotely . | . . . . Salvage Created 544 | 112 80 52 300 Parts 41 | 12 7 3 19 Haulers Intercepted . | . . . . Recyclers Shooed . | . . . . Parts Field Recycled . | . . . . Retrieved Matter . | . . . . Parts Self-Destructed . | . . . . Prevented . | . . . . Kills | -11 -10 -10 -9 ------- Run | Scr Mat Min Mat Combat Hostiles Destroyed 18 | 1 4 3 10 Guns 16 | 1 4 3 8 Cannons 2 | . . . 2 Classes Destroyed 6 | 3 1 . 2 Worker 1 | 1 . . . Tunneler 3 | 3 . . . Watcher 1 | . . . 1 Swarmer 8 | . 3 3 2 Grunt 8 | 1 1 . 6 Sentry 2 | . . . 2 Best Kill Streak 4 | 4 3 3 3 Combat Bots Only 3 | 1 3 3 3 Max Kills in Single Turn 2 | 1 1 1 2 Gunslinging . | . . . . Exploded . | . . . . Melee . | . . . . Uniques/NPCs Destroyed . | . . . . Combat | -11 -10 -10 -9 -------- Run | Scr Mat Min Mat Damage Taken 1927 | 11 83 129 1704 Core 451 | 11 11 27 402 Absorbed by Shields . | . . . . Redirected to Shielding 38 | . . . 38 Core Remaining (%) 87 | 95 . 80 . Volleys Fired 71 | 7 9 9 46 Largest 2 | 2 2 2 2 Hottest 150 | 70 100 100 150 Shots Fired 118 | 14 18 18 68 Gun 112 | 14 18 18 62 Cannon . | . . . . Launcher . | . . . . Special 6 | . . . 6 Kinetic 32 | 7 . . 25 Thermal 86 | 7 18 18 43 Explosive . | . . . . Electromagnetic . | . . . . Robot Hit Streak 11 | 11 2 2 7 Robot Miss Streak 12 | 1 3 3 12 Penetration Max . | . . . . Secondary Targets 2 | . . 2 . Max Gunslinging Chain 1 | . . 1 . Shots Hit Robots 73 | 11 7 7 48 Core Hits 49 | 6 6 3 34 Critical Kills . | . . . . Critical Parts Destroyed . | . . . . Critical Strikes 2 | . . 1 1 Burn 2 | . . 1 1 Melee Attacks 3 | . . . 3 Impact 3 | . . . 3 Slashing . | . . . . Piercing . | . . . . Sneak Attacks . | . . . . Combat Hostiles . | . . . . Follow-up Attacks . | . . . . Damage Inflicted 1110 | 138 96 98 778 Guns 918 | 138 88 98 594 Cannons . | . . . . Explosions . | . . . . Melee 55 | . . . 55 Ramming 41 | . 8 . 33 Kinetic 325 | 62 . . 263 Thermal 689 | 76 88 98 427 Explosive . | . . . . Electromagnetic . | . . . . Impact 55 | . . . 55 Slashing . | . . . . Piercing . | . . . . Highest Corruption 6 | . . . 6 Average Corruption 5 | . . . 5 Corruption Purged . | . . . . Corruption Blocked . | . . . . Effects 16 | . . . 16 Message Errors 5 | . . . 5 Matter Fused 3 | . . . 3 Heat Flow Errors 2 | . . . 2 Energy Discharges 3 | . . . 3 Data Loss (minor) 1 | . . . 1 Weapon Failures 2 | . . . 2 Overload Shots . | . . . . Overflow Damage . | . . . . Projectiles . | . . . . Explosions . | . . . . Melee . | . . . . Knockbacks . | . . . . Impact . | . . . . Kinetic . | . . . . Secondary . | . . . . Self-Inflicted Damage . | . . . . Shots . | . . . . Rammed . | . . . . Targets Rammed 22 | . 1 . 21 Kicked 22 | . 1 . 21 Crushed . | . . . . Highest Temperature 402 | 18 240 402 300 Average Temperature 125 | 9 111 209 118 Received Heat Transfer 714 | 6 12 . 696 Effects 5 | . . 5 . Shutdowns 2 | . . 2 . Interference 3 | . . 3 . Siege Activations . | . . . . Robots Corrupted . | . . . . Combat Hostiles . | . . . . Parts Fried . | . . . . Impact Corruptions . | . . . . Robots Melted . | . . . . Combat Hostiles . | . . . . Parts Melted 2 | . . . 2 Heat Transferred 1904 | 222 259 370 1053 Parts Sabotaged . | . . . . Parts Stolen . | . . . . Parts Stripped . | . . . . Power Chain Reactions . | . . . . Missiles Intercepted . | . . . . Alert | -11 -10 -10 -9 ------- Run | Scr Mat Min Mat Peak Influence 111 | 40 85 103 111 Initial 33 | . 26 33 . Average 39 | 25 44 49 36 Maximum Alert Level . | . . . . Low Security (%) 100 | 100 100 100 100 Level 1 . | . . . . Level 2 . | . . . . Level 3 . | . . . . Level 4 . | . . . . Level 5 . | . . . . High Security . | . . . . Max Security . | . . . . Squads Dispatched 2 | . 1 . 1 Investigation 1 | . 1 . . Extermination . | . . . . Reinforcement 1 | . . . 1 Assault . | . . . . Garrison . | . . . . Intercept . | . . . . Searches Triggered . | . . . . Construction Impeded . | . . . . Haulers Reinforced . | . . . . Active Scanning Responses . | . . . . Cargo Convoy Interrupts . | . . . . Stealth | -11 -10 -10 -9 --------- Run | Scr Mat Min Mat Distress Signals 2 | . . . 2 Communications Jammed . | . . . . Distress Signals . | . . . . Times Spotted 29 | 1 4 3 21 Peak Tracking Total 6 | 1 4 3 6 Tactical Retreats 2 | . . . 2 Traps | -11 -10 -10 -9 ------- Run | Scr Mat Min Mat Traps Triggered 7 | . 1 . 6 Indirectly . | . . . . Trap Hack Attempts . | . . . . Triggered . | . . . . Disarmed . | . . . . Reprogrammed . | . . . . Reused . | . . . . Traps Extracted . | . . . . Installed . | . . . . Triggered . | . . . . Machines | -11 -10 -10 -9 ---------- Run | Scr Mat Min Mat Machines Disabled . | . . . . Max in Single Turn . | . . . . Machines Sabotaged . | . . . . Garrisons Compromised . | . . . . Overloaded Fab Kills . | . . . . Hacking | -11 -10 -10 -9 --------- Run | Scr Mat Min Mat Machines Accessed 2 | . 1 . 1 Terminals 1 | . 1 . . Fabricators . | . . . . Repair Stations . | . . . . Recycling Units . | . . . . Scanalyzers 1 | . . . 1 Garrison Access . | . . . . Total Hacks 4 | . 1 . 3 Successful 2 | . . . 2 Failed 2 | . 1 . 1 Catastrophic . | . . . . Database Lockouts . | . . . . Manual . | . . . . Terminals 1 | . 1 . . Fabricators . | . . . . Repair Stations . | . . . . Recycling Units . | . . . . Scanalyzers 3 | . . . 3 Garrison Access . | . . . . Terminal Hacks . | . . . . Fabricator Hacks . | . . . . Repair Station Hacks . | . . . . Recycling Unit Hacks . | . . . . Scanalyzer 2 | . . . 2 Insert Component 1 | . . . 1 Analyze 1 | . . . 1 Garrison Access Hacks . | . . . . Unauthorized Hacks . | . . . . Terminals . | . . . . Fabricators . | . . . . Repair Stations . | . . . . Recycling Units . | . . . . Scanalyzers . | . . . . Garrison Access . | . . . . Data Cores Recovered . | . . . . Used . | . . . . Hacking Detections 2 | . 1 . 1 Full Trace Events . | . . . . Feedback Events . | . . . . Feedback Blocked . | . . . . Robot Schematics Acquired . | . . . . Robots Built . | . . . . Authchips . | . . . . Time . | . . . . Total Robot Build Rating . | . . . . Part Schematics Acquired 1 | . . . 1 Parts Built . | . . . . Authchips . | . . . . Time . | . . . . Total Part Build Rating . | . . . . Parts Repaired . | . . . . Time . | . . . . Parts Recycled . | . . . . Recycled Matter . | . . . . Retrieved Matter . | . . . . Retrieved Components . | . . . . Parts Scanalyzed 1 | . . . 1 Part Schematics Acquired 1 | . . . 1 Parts Damaged . | . . . . Bothacking | -11 -10 -10 -9 ------------ Run | Scr Mat Min Mat Used RIF Installer . | . . . . Robots Hacked . | . . . . Non-combat . | . . . . Combat . | . . . . Robot Hacks Applied . | . . . . Relay Couplers Released . | . . . . Fabnet Peak Effective % . | . . . . Robots Rewired . | . . . . Allies Hacked . | . . . . Hacks Repelled . | . . . . Allies | -11 -10 -10 -9 -------- Run | Scr Mat Min Mat Total Allies . | . . . . Largest Group . | . . . . Highest-Rated Group . | . . . . Highest-Rated Ally . | . . . . Total Orders . | . . . . Ally Attacks . | . . . . Total Damage . | . . . . Kills . | . . . . Allies Corrupted . | . . . . Allies Melted . | . . . . Intel | -11 -10 -10 -9 ------- Run | Scr Mat Min Mat Robot Analysis Total . | . . . . Derelict Logs Recovered 1 | . . 1 . Drone Launches . | . . . . Drone Recoveries . | . . . . Exploration | -11 -10 -10 -9 ------------- Run | Scr Mat Min Mat Turns Passed 2509 | 294 584 468 1163 Spaces Moved 1225 | 106 275 300 544 Core 24 | 24 . . . Treads . | . . . . Legs 1201 | 82 275 300 544 Wheels . | . . . . Hover . | . . . . Flight . | . . . . Fastest Speed 50 | 50 120 120 120 Average Speed 122 | 104 120 120 128 Slowest Speed 130 | 120 120 120 130 Overloaded Moves . | . . . . Propulsion Burnouts . | . . . . Robots Hopped . | . . . . Cave-ins Triggered . | . . . . Exploration Rate (%) 27 | 7 23 54 26 Regions Visited 3 Branch Regions 1 Pre-discovered Areas . | . . . . Known Exits Taken 1 | . . 1 . Unknown Exits Taken 2 | 1 1 . . Scrap Searched 2 | . . 2 . Spaces Dug . | . . . . Terrain Destroyed 2 | . . . 2 Melee . | . . . . Projectile 2 | . . . 2 AOE . | . . . . Terrain Rammed . | . . . . Walls Destroyed . | . . . . Machines Disabled . | . . . . Actions | -11 -10 -10 -9 --------- Run | Scr Mat Min Mat Total 2098 | 277 512 390 919 Wait 693 | 136 216 79 262 Move 1222 | 105 274 299 544 Hop . | . . . . Pick Up 40 | 16 5 1 18 Fast Attach . | . . . . Attach 24 | 7 1 1 15 Detach . | . . . . Swap 7 | 1 2 . 4 Drop 16 | 5 4 1 6 Fire 71 | 7 9 9 46 Melee 3 | . . . 3 Ram . | . . . . Kick 22 | . 1 . 21 Crush . | . . . . Escape Stasis . | . . . . Rewire . | . . . . Trap . | . . . . Miscellaneous . | . . . . Route ------- -11/Scrapyard -10/Materials -10/Mines (discovered 2 exits: *Mat x2) -9/Materials History --------- Turn | Location | Event 2 | -11/Scrapyard | Met Revision 17 97 | -11/Scrapyard | Discovered new exit (range 8) 295 | -11/Scrapyard | Entered Materials 315 | -10/Materials | Build established: Mutant 820 | -10/Materials | Discovered new exit (range 16) 879 | -10/Materials | Entered Mines 1240 | -10/Mines | Discovered new exit (range 15) 1310 | -10/Mines | Identified exit to Materials 1347 | -10/Mines | Entered Materials 1347 | -9/Materials | Evolved 2 slots: Propulsion x1, Utility x1 2086 | -9/Materials | Core integrity fell below 50% 2155 | -9/Materials | Core integrity fell below 20% 2165 | -9/Materials | Lost 7 parts (1p4n2u) 2510 | -9/Materials | Destroyed by EMP Trap Last Messages --------------- Scanning Spread Laser... Ready to analyze. >>Scanalyze Scanning: Spread Laser... Schematic downloaded. MHT|MY =D:#NYZPXWDDQJUGXT< MYXK Acquired 9 matter. System corrupted: Heat flow error (+293). E|68IJ>84M System corrupted: Matter fused (-9). FGZOGHD4SP9>Q#AKVVLA9O5TE70ZDG:M2PF%XTDI System corrupted: Matter fused (-10). System corrupted: Energy discharge (-32). DFD